fUSD/lending_fUSD_20241129
["ID","MTS","AMOUNT","RATE_DAILY","PERIOD"]
[343677854,1732847290889,-500.0,0.00041,120]
[343677855,1732847290935,-500.0,0.00041,120]
[343677856,1732847290977,-500.0,0.00041,120]
[343677857,1732847291018,-500.0,0.00041,120]
[343677858,1732847291058,-500.0,0.00041,120]
[343677859,1732847291099,-500.0,0.00041,120]
[343677860,1732847291143,-500.0,0.00041,120]
[343677861,1732847291181,-500.0,0.00041,120]
[343677862,1732847291220,-500.0,0.00041,120]
[343677863,1732847291257,-500.0,0.00041,120]
[343677864,1732847291297,-500.0,0.00041,120]
[343677865,1732847291338,-500.0,0.00041,120]
[343677866,1732847291381,-500.0,0.00041,120]
[343677867,1732847291426,-500.0,0.00041,120]
[343677868,1732847291465,-500.0,0.00041,120]
[343677869,1732847291506,-500.0,0.00041,120]
[343677870,1732847291549,-500.0,0.00041,120]
[343677871,1732847291589,-500.0,0.00041,120]
[343677872,1732847291633,-500.0,0.00041,120]
[343677873,1732847291672,-500.0,0.00041,120]
[343677874,1732847291711,-500.0,0.00041,120]
[343677875,1732847291752,-500.0,0.00041,120]
[343677876,1732847291792,-500.0,0.00041,120]
[343677877,1732847291832,-500.0,0.00041,120]
[343677878,1732847291876,-500.0,0.00041,120]
[343677879,1732847291917,-500.0,0.00041,120]
[343677880,1732847291956,-500.0,0.00041,120]
[343677881,1732847291994,-500.0,0.00041,120]
[343677882,1732847292035,-500.0,0.00041,120]
[343677883,1732847292073,-500.0,0.00041,120]
[343677884,1732847292113,-500.0,0.00041,120]
[343677885,1732847292154,-500.0,0.00041,120]
[343677886,1732847292194,-500.0,0.00041,120]
[343677887,1732847292234,-591.0,0.00041,120]
[343677888,1732847292278,-170012.92676303,0.00041,120]
[343677889,1732847292319,-1800.0,0.00041,42]
[343677890,1732847292361,-6264.0215407,0.00041,50]
[343677891,1732847292402,-469.0353667,0.00041,120]
[343677892,1732847292443,-9191.08969714,0.00041,30]
[343677893,1732847292483,-2000.0,0.00041,60]
[343677894,1732847292525,-20832.55712705,0.00041,120]
[343677895,1732847292568,-864.81187629,0.00041,120]
[343677896,1732847292611,-44960.13685308,0.00041,120]
[343677897,1732847292647,-5670.89,0.00041,120]
[343677898,1732847292685,-5615.0,0.00041,117]
[343677899,1732847292725,-82330.93338483,0.00041,120]
[343677900,1732847292765,-3000.0,0.00041,118]
[343677901,1732847292807,-3750.0,0.00041,120]
[343677902,1732847292850,-150.0,0.00041005,120]
[343677903,1732847292894,-5000.0,0.00041033,30]
[343677904,1732847292938,-172.61111111,0.00041041,120]
[343677905,1732847292980,-5000.0,0.00041047,30]
[343677906,1732847293022,-900.0,0.00041054,60]
[343677907,1732847293065,-2000.0,0.00041054,60]
[343677908,1732847293107,-5000.0,0.00041064,30]
[343677909,1732847293147,-1759.34,0.00041064,30]
[343677910,1732847293186,-1370.85,0.00041079,30]
[343677911,1732847293227,-5478.73093533,0.0004108,60]
[343677912,1732847293265,-307.14,0.0004109,45]
[343677913,1732847293302,-500.0,0.00041095,30]
[343677914,1732847293341,-513.50148261,0.00041095,30]
[343677915,1732847293381,-1000.0,0.00041095,120]
[343677916,1732847293422,-8586.61,0.00041095,120]
[343677917,1732847293464,-5000.0,0.00041096,120]
[343677918,1732847293507,-1000.0,0.00041096,120]
[343677919,1732847293549,-1000.0,0.00041096,30]
[343677920,1732847293592,-1000.0,0.00041096,60]
[343677921,1732847293637,-45000.0,0.000411,30]
[343677922,1732847293682,-1159.26,0.000411,30]
[343677923,1732847293724,-150.92,0.00041109,30]
[343677924,1732847293767,-503.70290731,0.0004112,30]
[343677925,1732847293812,-239.04957516,0.0004112,30]
[343677926,1732847293861,-3750.0,0.00041125,120]
[343677927,1732847293909,-201.0,0.0004114,30]
[343677928,1732847293953,-203.0,0.0004114,30]
[343677929,1732847293997,-100000.0,0.0004118,120]
[343677930,1732847294038,-5000.0,0.00041182,30]
[343677931,1732847294082,-2500.0,0.00041185,30]
[343677932,1732847294125,-2543.0,0.00041193,30]
[343677933,1732847294169,-2110.0,0.00041198,30]
[343677934,1732847294214,-5000.0,0.00041209,30]
[343677935,1732847294259,-5000.0,0.00041221,30]
[343677936,1732847294303,-5000.0,0.00041283,30]
[343677937,1732847294347,-5000.0,0.00041301,30]
[343677938,1732847294394,-5000.0,0.00041311,30]
[343677939,1732847294440,-1000.0,0.0004132,120]
[343677940,1732847294482,-167.5,0.0004133,30]
[343677941,1732847294522,-3933.7,0.00041363,30]
[343677942,1732847294563,-1000.0,0.00041369,120]
[343677943,1732847294602,-503.70290731,0.00041383,30]
[343677944,1732847294645,-239.04957516,0.00041383,30]
[343677945,1732847294846,-1999.0,0.00041397,120]
[343677946,1732847294890,-1999.0,0.00041397,120]
[343677947,1732847294932,-1999.0,0.00041397,120]
[343677948,1732847294974,-1999.0,0.00041397,120]
[343677949,1732847295016,-1999.0,0.00041397,120]
[343677950,1732847295057,-1999.0,0.00041397,120]
[343677951,1732847295099,-1999.0,0.00041397,120]
[343677952,1732847295145,-1999.0,0.00041397,120]
[343677953,1732847295185,-1999.0,0.00041397,120]
[343677954,1732847295227,-1999.0,0.00041397,120]
[343677955,1732847295266,-1999.0,0.00041397,120]
[343677956,1732847295309,-1999.0,0.00041397,120]
[343677957,1732847295350,-1999.0,0.00041397,120]
[343677958,1732847295391,-1999.0,0.00041397,120]
[343677959,1732847295433,-1999.0,0.00041397,120]
[343677960,1732847295475,-1999.0,0.00041397,120]
[343677961,1732847295520,-1999.0,0.00041397,120]
[343677962,1732847295570,-1999.0,0.00041397,120]
[343677963,1732847295614,-1999.0,0.00041397,120]
[343677964,1732847295658,-1999.0,0.00041397,120]
[343677965,1732847295701,-1999.0,0.00041397,120]
[343677966,1732847295744,-1999.0,0.00041397,120]
[343677967,1732847295786,-1999.0,0.00041397,120]
[343677968,1732847295827,-1180.95070824,0.00041397,120]
[343677969,1732847295871,-300.0,0.000414,120]
[343677970,1732847295912,-1001.32,0.000414,48]
[343677971,1732847295955,-4257.57,0.00041409,30]
[343677972,1732847295997,-205.0,0.0004142,30]
[343677973,1732847296039,-5000.0,0.00041452,30]
[343677974,1732847296079,-5000.0,0.00041454,30]
[343677975,1732847296127,-2500.0,0.00041475,30]
[343677976,1732847296167,-150.0,0.00041514,30]
[343677977,1732847296211,-5000.0,0.00041517,30]
[343677978,1732847296256,-5000.0,0.00041534,30]
[343677979,1732847296298,-2543.0,0.00041534,30]
[343677980,1732847296342,-1000.0,0.00041544,120]
[343677981,1732847296385,-171.67,0.00041556,30]
[343677982,1732847296430,-700.0,0.00041602,60]
[343677983,1732847296473,-150.0,0.00041606,120]
[343677984,1732847296514,-5000.0,0.00041625,30]
[343677985,1732847296559,-150.0,0.00041642,120]
[343677986,1732847296601,-1000.0,0.00041643,120]
[343677987,1732847296648,-503.70290731,0.00041646,30]
[343677988,1732847296689,-239.04957516,0.00041646,30]
[343677989,1732847296731,-977.95,0.00041652,30]
[343677990,1732847296772,-150.0,0.00041656,30]
[343677991,1732847296814,-2500.0,0.00041662,30]
[343677992,1732847296859,-25000.0,0.00041668,30]
[343677993,1732847296901,-5000.0,0.00041688,30]
[343677994,1732847296945,-2110.0,0.00041698,30]
[343677995,1732847296991,-2500.0,0.00041722,30]
[343677996,1732847297034,-100000.0,0.00041755,30]
[343677997,1732847297078,-1000.0,0.00041768,120]
[343677998,1732847297122,-6179.55517659,0.0004178,120]
[343677999,1732847297166,-200.0,0.000418,30]
[343678000,1732847297209,-200.0,0.00041812,30]
[343678001,1732847297252,-200.0,0.00041817,30]
[343678002,1732847297294,-200.0,0.00041821,30]
[343678003,1732847297334,-200.0,0.00041823,30]
[343678004,1732847297373,-25000.0,0.00041826,30]
[343678005,1732847297414,-200.0,0.00041826,30]
[343678006,1732847297463,-200.0,0.0004184,30]
[343678007,1732847297505,-200.0,0.00041849,30]
[343678008,1732847297547,-200.0,0.00041849,30]
[343678009,1732847297588,-200.0,0.00041856,30]
[343678010,1732847297629,-200.0,0.00041858,30]
[343678011,1732847297670,-200.0,0.00041865,30]
[343678012,1732847297713,-200.0,0.0004187,30]
[343678013,1732847297758,-273.70879768,0.00041871,30]
[343678014,1732847297800,-273.70879768,0.00041872,30]
[343678015,1732847297841,-204.0,0.00041872,30]
[343678016,1732847297895,-17815.96,0.00041874,30]
[343678017,1732847297938,-200.0,0.00041875,30]
[343678018,1732847297981,-200.0,0.00041876,30]
[343678019,1732847298024,-2500.0,0.00041883,30]
[343678020,1732847298068,-5000.0,0.00041887,30]
[343678021,1732847298116,-3516.63,0.00041888,30]
[343678022,1732847298161,-273.70879768,0.00041889,30]
[343678023,1732847298207,-172.61111111,0.0004189,120]
[343678024,1732847298258,-200.0,0.00041893,30]
[343678025,1732847298302,-200.0,0.00041906,30]
[343678026,1732847298346,-200.0,0.00041907,30]
[343678027,1732847298388,-200.0,0.00041909,30]
[343678028,1732847298432,-503.70290731,0.00041909,30]
[343678029,1732847298473,-239.04957516,0.00041909,30]
[343678030,1732847298516,-1000.0,0.00041917,120]
[343678031,1732847298560,-200.0,0.00041921,30]
[343678032,1732847298607,-273.70879768,0.00041923,30]
[343678033,1732847298652,-200.0,0.00041923,30]
[343678034,1732847298695,-158.57,0.00041925,30]
[343678035,1732847298737,-200.0,0.00041925,30]
[343678036,1732847298779,-200.0,0.00041934,30]
[343678037,1732847298821,-5000.0,0.00041937,30]
[343678038,1732847298862,-200.0,0.00041938,30]
[343678039,1732847298904,-150.0,0.00041939,120]
[343678040,1732847298944,-200.0,0.00041943,30]
[343678041,1732847298983,-1998.0,0.00041947,52]
[343678042,1732847299026,-11822.08,0.00041947,120]
[343678043,1732847299067,-11822.081,0.00041947,120]
[343678044,1732847299109,-11822.08,0.00041947,120]
[343678045,1732847299150,-11822.08,0.00041947,120]
[343678046,1732847299192,-11822.081,0.00041947,120]
[343678047,1732847299233,-5000.0,0.00041959,30]
[343678048,1732847299435,-200.0,0.00041982,30]
[343678049,1732847299479,-720.25,0.00041984,30]
[343678050,1732847299522,-200.0,0.00041991,30]
[343678051,1732847299566,-1000.0,0.00041993,120]
[343678052,1732847299612,-2500.0,0.00041994,30]
[343678053,1732847299654,-14630.0,0.00042,120]
[343678054,1732847299697,-300.0,0.00042,120]
[343678055,1732847299739,-450.0,0.00042,120]
[343678056,1732847299781,-183936.4062994,0.00042,120]
[343678057,1732847299824,-6000.0,0.00042,30]
[343678058,1732847299867,-1800.0,0.00042,43]
[343678059,1732847299910,-17139.99717625,0.00042,30]
[343678060,1732847299951,-8816.0,0.00042,30]
[343678061,1732847299992,-150.0,0.00042,120]
[343678062,1732847300034,-372.52114786,0.00042,120]
[343678063,1732847300077,-3000.0,0.00042,120]
[343678064,1732847300119,-3000.0,0.00042,120]
[343678065,1732847300161,-275.46138637,0.00042,120]
[343678066,1732847300204,-13425.94085917,0.00042,30]
[343678067,1732847300248,-18324.93334477,0.00042,120]
[343678068,1732847300290,-52157.28321768,0.00042,60]
[343678069,1732847300334,-10000.0,0.00042,120]
[343678070,1732847300375,-10000.0,0.00042,120]
[343678071,1732847300415,-2011.53,0.00042,120]
[343678072,1732847300459,-8000.0,0.00042,30]
[343678073,1732847300502,-25690.86489004,0.00042,120]
[343678074,1732847300544,-6778.51110982,0.00042,120]
[343678075,1732847300584,-151.0,0.00042082,120]
[343678076,1732847300624,-307.14,0.00042105,53]
[343678077,1732847300666,-150.0,0.00042106,30]
[343678078,1732847300706,-900.0,0.0004215,60]
[343678079,1732847300748,-2000.0,0.0004215,60]
[343678080,1732847300789,-503.70290731,0.00042172,30]
[343678081,1732847300830,-239.04957516,0.00042172,30]
[343678082,1732847300872,-1000.0,0.00042191,120]
[343678083,1732847300915,-8586.61,0.00042191,120]
[343678084,1732847300958,-2110.0,0.00042198,30]
[343678085,1732847301000,-78562.54669471,0.000422,120]
[343678086,1732847301047,-1000.0,0.00042217,120]
[343678087,1732847301087,-19999.99,0.00042228,120]
[343678088,1732847301128,-375.9897838,0.000423,30]
[343678089,1732847301168,-107492.47040572,0.000423,120]
[343678090,1732847301207,-2000.0,0.00042345,31]
[343678091,1732847301249,-1000.0,0.0004238,120]
[343678092,1732847301288,-90213.21120213,0.00042393,30]
[343678093,1732847301327,-150.0,0.000424,120]
[343678094,1732847301369,-150.0,0.000424,120]
[343678095,1732847301416,-100000.0,0.00042433,39]
[343678096,1732847301459,-100000.0,0.00042433,36]
[343678097,1732847301505,-21889.92981021,0.00042433,35]
[343678115,1732847431895,-1082.47,8.219e-05,2]
[343678116,1732847431906,-1000.0,8.843e-05,2]
[343678117,1732847431917,-174.3,8.85e-05,2]
[343678118,1732847431927,-378.13,8.877e-05,2]
[343678119,1732847431936,-300.0,8.933e-05,2]
[343678120,1732847431946,-684.25044147,8.934e-05,2]
[343678121,1732847431958,-4880.937085,8.934e-05,2]
[343678122,1732847431970,-16995.29247353,8.934e-05,2]
[343678123,1732847431979,-651.41,8.941e-05,2]
[343678124,1732847431990,-250.0,8.969e-05,2]
[343678125,1732847432001,-1503.99098425,9e-05,2]
[343678126,1732847432010,-167.98,9.014e-05,2]
[343678127,1732847432019,-150.0,9.507e-05,2]
[343678128,1732847432029,-2014.877,9.508e-05,2]
[343678129,1732847432038,-630.0,9.508e-05,2]
[343678130,1732847432047,-150.983,9.508e-05,2]
[343678131,1732847432058,-329.939,9.508e-05,2]
[343678132,1732847432066,-1786.3,9.508e-05,2]
[343678133,1732847432078,-3523.0,9.508e-05,2]
[343678134,1732847432088,-967.0,9.508e-05,2]
[343678135,1732847432098,-534.0,9.508e-05,2]
[343678136,1732847432109,-5957.0,9.508e-05,2]
[343678137,1732847432118,-633.0,9.508e-05,2]
[343678138,1732847432127,-152.169,9.508e-05,2]
[343678139,1732847432137,-330.431,9.508e-05,2]
[343678140,1732847432147,-1856.95600918,9.589e-05,2]
[343678141,1732847432160,-232.23399082,9.589e-05,2]
[343678142,1732847432170,-400.0,9.589e-05,2]
[343678143,1732847432181,-174.339521,9.71e-05,2]
[343678144,1732847432190,-2089.19,9.726e-05,2]
[343678145,1732847432201,-1500.0,9.732e-05,2]
[343678146,1732847432211,-150.0,9.751e-05,2]
[343678147,1732847432221,-150.0,9.794e-05,2]
[343678149,1732847432230,-500.0,9.808e-05,2]
[343678151,1732847432239,-150.0,9.817e-05,2]
[343678153,1732847432248,-420.0,9.827e-05,2]
[343678155,1732847432257,-2089.19,9.863e-05,2]
[343678157,1732847432266,-1453.67835775,9.884e-05,2]
[343678159,1732847432275,-1336.6713,9.896e-05,2]
[343678161,1732847432284,-27280.43753809,9.897e-05,2]
[343678163,1732847432296,-5800.62316191,9.897e-05,2]
[343678165,1732847432305,-2500.0,9.898e-05,2]
[343678167,1732847432314,-373.483,9.9e-05,2]
[343678169,1732847432323,-230.0,9.9e-05,2]
[343678171,1732847432332,-364.0,9.9e-05,2]
[343678173,1732847432342,-1000.0,9.9e-05,2]
[343678175,1732847432352,-151.33197332,9.9e-05,2]
[343678176,1732847432362,-1000.0,9.948e-05,2]
[343678177,1732847432371,-150.0,9.952e-05,2]
[343678178,1732847432381,-500.0,9.959e-05,2]
[343678179,1732847432391,-512.7557963,9.959e-05,2]
[343678181,1732847432400,-500.0,9.959e-05,2]
[343678183,1732847432410,-500.0,9.959e-05,2]
[343678185,1732847432419,-500.0,9.959e-05,2]
[343678187,1732847432428,-509.85818242,9.959e-05,2]
[343678188,1732847432437,-500.0,9.959e-05,2]
[343678189,1732847432447,-568.0,9.959e-05,2]
[343678190,1732847432461,-500.0,9.959e-05,2]
[343678191,1732847432470,-500.0,9.959e-05,2]
[343678192,1732847432479,-500.0,9.959e-05,2]
[343678193,1732847432487,-553.21756087,9.959e-05,2]
[343678194,1732847432497,-500.0,9.959e-05,2]
[343678195,1732847432506,-183.28655303,9.959e-05,2]
[343678196,1732847432515,-500.0,9.959e-05,2]
[343678197,1732847432524,-500.0,9.959e-05,2]
[343678198,1732847432534,-264.25539056,9.959e-05,2]
[343678199,1732847432543,-500.0,9.959e-05,2]
[343678200,1732847432552,-568.87900107,9.959e-05,2]
[343678201,1732847432561,-500.0,9.959e-05,2]
[343678202,1732847432570,-500.0,9.959e-05,2]
[343678203,1732847432579,-433.12751292,9.959e-05,2]
[343678204,1732847432588,-2635.18,9.959e-05,2]
[343678205,1732847432597,-2306.31,9.959e-05,2]
[343678206,1732847432606,-500.0,9.959e-05,2]
[343678207,1732847432615,-500.0,9.959e-05,2]
[343678208,1732847432624,-500.0,9.959e-05,2]
[343678209,1732847432633,-500.0,9.959e-05,2]
[343678210,1732847432641,-500.0,9.959e-05,2]
[343678211,1732847432650,-571.35361827,9.959e-05,2]
[343678212,1732847432659,-500.0,9.959e-05,2]
[343678213,1732847432669,-500.0,9.959e-05,2]
[343678214,1732847432678,-500.0,9.959e-05,2]
[343678215,1732847432687,-500.0,9.959e-05,2]
[343678216,1732847432697,-500.0,9.959e-05,2]
[343678217,1732847432706,-500.0,9.959e-05,2]
[343678218,1732847432716,-500.0,9.959e-05,2]
[343678219,1732847432725,-500.0,9.959e-05,2]
[343678220,1732847432734,-500.0,9.959e-05,2]
[343678221,1732847432743,-533.63984951,9.959e-05,2]
[343678222,1732847432753,-500.0,9.959e-05,2]
[343678223,1732847432762,-500.0,9.959e-05,2]
[343678224,1732847432771,-1666.66,9.959e-05,2]
[343678225,1732847432782,-537.0222381,9.959e-05,2]
[343678226,1732847432794,-500.0,9.959e-05,2]
[343678227,1732847432804,-531.97460819,9.959e-05,2]
[343678228,1732847432813,-500.0,9.959e-05,2]
[343678229,1732847432823,-500.0,9.959e-05,2]
[343678230,1732847432832,-159.40119434,9.973e-05,2]
[343678231,1732847432841,-159.38311709,9.973e-05,2]
[343678232,1732847432851,-6295.6220067,9.973e-05,2]
[343678233,1732847432861,-200.0,9.975e-05,2]
[343678234,1732847432871,-6295.6220067,9.976e-05,2]
[343678235,1732847432880,-6295.6220067,9.981e-05,2]
[343678236,1732847432890,-6295.6220067,9.981e-05,2]
[343678237,1732847432899,-200.0,9.986e-05,2]
[343678238,1732847432908,-6295.6220067,9.99e-05,2]
[343678239,1732847432918,-171.53419536,9.99e-05,2]
[343678240,1732847432927,-171.53419535,9.99e-05,2]
[343678241,1732847432936,-171.53419535,9.99e-05,2]
[343678242,1732847432945,-171.53419535,9.99e-05,2]
[343678243,1732847432954,-2065.2729842,9.993e-05,2]
[343678244,1732847432965,-200.0,9.993e-05,2]
[343678245,1732847432975,-500.0,9.996e-05,2]
[343678246,1732847432985,-500.0,9.996e-05,2]
[343678247,1732847432994,-500.0,9.996e-05,2]
[343678248,1732847433002,-500.0,9.996e-05,2]
[343678249,1732847433011,-500.0,9.996e-05,2]
[343678250,1732847433021,-500.0,9.996e-05,2]
[343678251,1732847433030,-374.47439038,9.996e-05,2]
[343678252,1732847433039,-2635.18,9.996e-05,2]
[343678253,1732847433049,-2306.31,9.996e-05,2]
[343678254,1732847433059,-500.0,9.996e-05,2]
[343678255,1732847433068,-500.0,9.996e-05,2]
[343678256,1732847433078,-500.0,9.996e-05,2]
[343678257,1732847433087,-500.0,9.996e-05,2]
[343678258,1732847433096,-500.0,9.996e-05,2]
[343678259,1732847433105,-500.0,9.996e-05,2]
[343678260,1732847433116,-500.0,9.996e-05,2]
[343678261,1732847433125,-500.0,9.996e-05,2]
[343678262,1732847433134,-500.0,9.996e-05,2]
[343678263,1732847433143,-500.0,9.996e-05,2]
[343678264,1732847433152,-500.0,9.996e-05,2]
[343678265,1732847433161,-500.0,9.996e-05,2]
[343678266,1732847433170,-500.0,9.996e-05,2]
[343678267,1732847433179,-500.0,9.996e-05,2]
[343678268,1732847433188,-500.0,9.996e-05,2]
[343678269,1732847433197,-500.0,9.996e-05,2]
[343678270,1732847433208,-1666.66,9.996e-05,2]
[343678271,1732847433223,-500.0,9.996e-05,2]
[343678272,1732847433232,-500.0,9.996e-05,2]
[343678273,1732847433242,-500.0,9.996e-05,2]
[343678274,1732847433251,-1087.88,9.996e-05,2]
[343678275,1732847433260,-500.0,9.996e-05,2]
[343678276,1732847433269,-500.0,9.996e-05,2]
[343678277,1732847433279,-1049.73,9.996e-05,2]
[343678278,1732847433288,-1230.07,9.996e-05,2]
[343678279,1732847433297,-2730.72,9.996e-05,2]
[343678280,1732847433306,-877.15,9.996e-05,2]
[343678281,1732847433315,-500.0,9.996e-05,2]
[343678282,1732847433325,-991.74,9.996e-05,2]
[343678283,1732847433334,-2096.93,9.996e-05,2]
[343678284,1732847433343,-651.09,9.996e-05,2]
[343678285,1732847433353,-317.49468259,9.996e-05,2]
[343678286,1732847433362,-500.0,9.996e-05,2]
[343678287,1732847433371,-1349.72,9.996e-05,2]
[343678288,1732847433381,-500.0,9.996e-05,2]
[343678289,1732847433390,-1587.3,9.996e-05,2]
[343678290,1732847433399,-500.0,9.996e-05,2]
[343678291,1732847433408,-410.937394,9.996e-05,2]
[343678292,1732847433417,-500.0,9.996e-05,2]
[343678293,1732847433426,-1543.57,9.996e-05,2]
[343678294,1732847433435,-500.0,9.996e-05,2]
[343678295,1732847433445,-500.0,9.996e-05,2]
[343678296,1732847433458,-500.0,9.996e-05,2]
[343678297,1732847433469,-836.09,9.996e-05,2]
[343678298,1732847433479,-841.45,9.996e-05,2]
[343678299,1732847433488,-2871.2,9.996e-05,2]
[343678300,1732847433500,-2649.35,9.996e-05,2]
[343678301,1732847433509,-259.768194,9.996e-05,2]
[343678302,1732847433518,-500.0,9.996e-05,2]
[343678303,1732847433529,-593.32,9.996e-05,2]
[343678304,1732847433538,-940.97,9.996e-05,2]
[343678305,1732847433548,-739.54,9.996e-05,2]
[343678306,1732847433557,-1154.93,9.996e-05,2]
[343678307,1732847433566,-2044.93,9.996e-05,2]
[343678308,1732847433575,-500.0,9.996e-05,2]
[343678309,1732847433584,-500.0,9.996e-05,2]
[343678310,1732847433593,-3519.15,9.996e-05,2]
[343678311,1732847433602,-1488.75,9.996e-05,2]
[343678312,1732847433611,-2403.68,9.996e-05,2]
[343678313,1732847433619,-500.0,9.996e-05,2]
[343678314,1732847433628,-385.7966423,9.996e-05,2]
[343678315,1732847433637,-500.0,9.996e-05,2]
[343678316,1732847433647,-500.0,9.996e-05,2]
[343678317,1732847433655,-500.0,9.996e-05,2]
[343678318,1732847433664,-500.0,9.996e-05,2]
[343678319,1732847433673,-500.0,9.996e-05,2]
[343678320,1732847433682,-204.84148359,9.996e-05,2]
[343678321,1732847433691,-488.87170419,9.996e-05,2]
[343678322,1732847433700,-500.0,9.996e-05,2]
[343678323,1732847433930,-500.0,9.996e-05,2]
[343678324,1732847433939,-500.0,9.997e-05,2]
[343678325,1732847433948,-500.0,9.997e-05,2]
[343678326,1732847433958,-503.44493863,9.997e-05,2]
[343678327,1732847433968,-612.28763429,9.997e-05,2]
[343678328,1732847433977,-500.0,9.997e-05,2]
[343678329,1732847433987,-568.0,9.997e-05,2]
[343678330,1732847433998,-500.0,9.997e-05,2]
[343678331,1732847434007,-500.0,9.997e-05,2]
[343678332,1732847434017,-500.0,9.997e-05,2]
[343678333,1732847434026,-500.0,9.997e-05,2]
[343678334,1732847434036,-500.0,9.997e-05,2]
[343678335,1732847434045,-500.0,9.997e-05,2]
[343678336,1732847434054,-500.0,9.997e-05,2]
[343678337,1732847434063,-500.0,9.997e-05,2]
[343678338,1732847434072,-500.0,9.997e-05,2]
[343678339,1732847434081,-500.0,9.997e-05,2]
[343678340,1732847434091,-500.0,9.997e-05,2]
[343678341,1732847434100,-500.0,9.997e-05,2]
[343678342,1732847434109,-500.0,9.997e-05,2]
[343678343,1732847434118,-500.0,9.997e-05,2]
[343678344,1732847434127,-500.0,9.997e-05,2]
[343678345,1732847434136,-500.0,9.997e-05,2]
[343678346,1732847434145,-500.0,9.997e-05,2]
[343678347,1732847434155,-500.0,9.997e-05,2]
[343678348,1732847434164,-500.0,9.997e-05,2]
[343678349,1732847434173,-500.0,9.997e-05,2]
[343678350,1732847434182,-500.0,9.997e-05,2]
[343678351,1732847434192,-500.0,9.997e-05,2]
[343678352,1732847434201,-397.3794476,9.997e-05,2]
[343678353,1732847434211,-500.0,9.997e-05,2]
[343678354,1732847434221,-500.0,9.997e-05,2]
[343678355,1732847434231,-500.0,9.997e-05,2]
[343678356,1732847434240,-500.0,9.997e-05,2]
[343678357,1732847434248,-514.81636407,9.997e-05,2]
[343678358,1732847434258,-500.0,9.997e-05,2]
[343678359,1732847434267,-500.0,9.997e-05,2]
[343678360,1732847434276,-500.0,9.997e-05,2]
[343678361,1732847434286,-500.0,9.997e-05,2]
[343678362,1732847434295,-500.0,9.997e-05,2]
[343678363,1732847434304,-500.0,9.997e-05,2]
[343678364,1732847434313,-541.28901209,9.997e-05,2]
[343678365,1732847434322,-500.0,9.997e-05,2]
[343678366,1732847434331,-505.25913253,9.997e-05,2]
[343678367,1732847434340,-500.0,9.997e-05,2]
[343678368,1732847434348,-500.0,9.997e-05,2]
[343678369,1732847434357,-500.0,9.997e-05,2]
[343678370,1732847434366,-500.0,9.997e-05,2]
[343678371,1732847434376,-345.24,9.997e-05,2]
[343678372,1732847434385,-500.0,9.997e-05,2]
[343678373,1732847434394,-500.0,9.997e-05,2]
[343678374,1732847434403,-500.0,9.997e-05,2]
[343678375,1732847434412,-500.0,9.997e-05,2]
[343678376,1732847434421,-229.68147795,9.997e-05,2]
[343678377,1732847434431,-500.0,9.997e-05,2]
[343678378,1732847434441,-500.0,9.997e-05,2]
[343678379,1732847434453,-500.0,9.997e-05,2]
[343678380,1732847434465,-500.0,9.997e-05,2]
[343678381,1732847434474,-500.0,9.997e-05,2]
[343678382,1732847434483,-527.18906585,9.997e-05,2]
[343678383,1732847434494,-500.0,9.997e-05,2]
[343678384,1732847434503,-500.0,9.997e-05,2]
[343678385,1732847434512,-500.0,9.997e-05,2]
[343678386,1732847434521,-468.94,9.997e-05,2]
[343678387,1732847434531,-500.0,9.997e-05,2]
[343678388,1732847434540,-500.0,9.997e-05,2]